bitfinex/quotes_ETHUSD_20220118
["timestamp","ask_amount","ask_price","bid_price","bid_amount"]
[1642539255474,18.78,3114.0,3113.2,1.2339]
[1642539255674,18.78,3114.0,3113.1,5.7119625]
[1642539255675,0.80334,3113.8,3113.1,5.7119625]
[1642539255936,1.60667,3113.9,3113.3,0.00454738]
[1642539255937,0.80336,3113.6,3113.3,0.00454738]
[1642539256325,0.1283,3113.5,3113.3,0.00454738]
[1642539256726,1.50669248,3113.4,3113.2,4.08850285]
[1642539256927,0.1283,3113.5,3113.2,4.38850285]
[1642539257127,0.1283,3113.5,3113.4,4.25303]
[1642539257533,0.1283,3113.5,3113.4,6.43051396]
[1642539257729,0.1283,3113.5,3113.4,5.62748396]
[1642539258129,0.1283,3113.5,3113.4,3.64879994]
[1642539259330,0.1283,3113.5,3113.4,5.88013994]
[1642539259531,0.16041,3115.0,3113.4,7.53451171]
[1642539259532,0.1284,3114.8,3113.4,7.53451171]
[1642539259775,0.1284,3114.8,3113.8,0.8028812]
[1642539260084,0.00341054,3114.7,3113.9,0.42943684]
[1642539260474,0.00284212,3114.6,3113.9,0.42943684]
[1642539260676,1.21956572,3114.3,3113.9,2.60630559]
[1642539260874,1.21956572,3114.3,3113.9,0.00113684]
[1642539261074,1.21956572,3114.3,3113.9,0.30113684]
[1642539261574,0.0022737,3114.5,3113.9,0.00113684]
[1642539261774,0.0022737,3114.5,3114.0,0.1283]
[1642539261976,5.8915,3115.9,3114.1,0.8028]
[1642539261977,0.00170527,3114.4,3114.1,0.8028]
[1642539262175,0.00170527,3114.4,3114.2,0.1283]
[1642539262377,0.00113685,3114.3,3114.2,0.3]
[1642539262583,0.00113685,3114.3,3114.2,1.73421239]
[1642539262777,0.00113685,3114.3,3113.9,2.14092864]
[1642539262978,0.00113685,3114.3,3114.1,1.62345965]
[1642539264319,0.00113685,3114.3,3114.0,0.3]
[1642539264520,0.00113685,3114.3,3114.2,1.96669227]
[1642539269376,0.00113685,3114.3,3114.2,3.26669227]
[1642539269580,0.00113685,3114.3,3114.2,6.36315744]
[1642539269779,0.00113685,3114.3,3114.2,6.86213089]
[1642539269977,0.00113685,3114.3,3114.2,8.32853089]
[1642539270277,0.1283,3115.0,3114.3,5.6]
[1642539270481,0.1283,3115.0,3114.5,1.40254]
[1642539270679,0.1283,3115.0,3114.9,4.34024222]
[1642539270930,0.1283,3115.0,3114.9,6.64263536]
[1642539271125,0.13227896,3115.0,3114.9,4.69263536]
[1642539271728,0.13227896,3115.0,3114.9,5.49524536]
[1642539271924,0.13227896,3115.0,3114.9,5.62354536]
[1642539273131,0.13227896,3115.0,3114.9,4.23330314]
[1642539273630,0.13227896,3115.0,3114.9,2.13069314]
[1642539273827,0.00397896,3115.0,3114.9,2.13069314]
[1642539274228,1.11290917,3115.0,3114.9,2.13069314]
[1642539274430,1.11290917,3115.0,3114.9,1.83069314]
[1642539274675,1.11290917,3115.0,3114.9,2.13069314]
[1642539275878,1.24120917,3115.0,3114.5,4.08850285]
[1642539276079,1.24120917,3115.0,3114.9,2.72557257]
[1642539276277,1.23723021,3115.0,3114.9,2.72557257]
[1642539277077,1.23723021,3115.0,3114.2,1.62725232]
[1642539277078,1.23723021,3115.0,3114.2,2.72557257]
[1642539277280,1.23723021,3115.0,3114.5,2.03181374]
[1642539277482,0.00341054,3114.9,3114.5,2.03181374]
[1642539277882,1.20549661,3114.6,3114.5,2.03181374]
[1642539278287,1.20720188,3114.6,3114.5,2.03181374]
[1642539278821,1.20720188,3114.6,3114.5,4.75738631]
[1642539280222,1.20720188,3114.6,3114.5,2.72557257]
[1642539280526,1.20720188,3114.6,3114.0,3.3667]
[1642539280527,1.49591188,3114.6,3114.0,5.84405517]
[1642539280725,1.49591188,3114.6,3114.0,5.71575517]
[1642539280726,0.1283,3114.5,3114.0,5.71575517]
[1642539280930,0.1283,3114.5,3114.1,0.00113684]
[1642539280931,0.16041,3114.4,3114.1,0.00113684]
[1642539281123,0.16041,3114.4,3113.8,2.56369748]
[1642539281124,5.6,3114.2,3113.8,2.56369748]
[1642539281327,19.71153,3114.1,3113.8,2.43518948]
[1642539281623,20.57967766,3114.0,3113.9,0.00113685]
[1642539281825,20.86853766,3114.0,3113.9,0.00113685]
[1642539282024,20.86853766,3114.0,3113.1,4.00193882]
[1642539282025,0.8033989,3113.8,3113.1,4.00193882]
[1642539282280,2.16427089,3113.2,3112.9,1.72142633]
[1642539282478,4.29968089,3113.2,3112.9,1.72142633]
[1642539282679,0.1283,3113.1,3112.9,1.72142633]
[1642539282878,4.29968089,3113.2,3112.9,1.72142633]
[1642539283081,5.76056,3113.0,3112.9,0.23575794]
[1642539283278,28.48097907,3113.0,3112.7,3.20155106]
[1642539283483,5.76056,3112.8,3112.7,3.20155106]
[1642539283678,5.76056,3112.8,3112.3,0.128535]
[1642539283679,1.16152251,3112.6,3112.3,0.128535]
[1642539284179,2.87127543,3112.6,3112.3,0.128535]
[1642539284380,0.16056,3112.4,3112.3,0.128535]
[1642539284579,4.00510924,3112.5,3112.3,0.128535]
[1642539284779,3.87660924,3112.5,3112.3,0.13762978]
[1642539285179,0.8358,3112.5,3112.3,0.13762978]
[1642539286030,8.7490653,3112.4,3112.3,0.00909478]
[1642539286229,9.6813353,3112.4,3112.3,0.00909478]
[1642539286425,9.6813353,3112.4,3111.9,0.01136847]
[1642539286426,0.80378,3112.3,3111.9,0.01136847]
[1642539286627,0.80378,3112.3,3111.7,0.1285]
[1642539286628,4.99132102,3112.2,3111.8,0.0119369]
[1642539287030,1.72600391,3112.1,3111.8,0.0119369]
[1642539287229,0.1285,3112.0,3111.8,0.0119369]
[1642539287430,21.85253234,3112.0,3111.8,0.0119369]
[1642539287731,6.1154034,3111.9,3111.8,0.0119369]
[1642539287931,2.8654034,3111.9,3111.8,0.0119369]
[1642539288132,5.46056,3111.9,3111.8,0.0119369]
[1642539288330,8.33729362,3111.9,3111.8,0.0119369]
[1642539288732,24.24056,3111.9,3111.8,0.0119369]
[1642539289030,2.00507065,3111.9,3111.8,0.0119369]
[1642539289432,0.51694543,3112.0,3111.8,0.0119369]
[1642539289684,0.38844543,3112.0,3111.8,0.0119369]
[1642539290584,6.72464255,3111.9,3111.8,0.0119369]
[1642539290785,5.10137617,3111.9,3111.8,0.0119369]
[1642539291581,2.22464255,3111.9,3111.8,0.0119369]
[1642539291783,5.28094789,3111.9,3111.8,0.0119369]
[1642539292182,6.13454789,3111.9,3111.2,0.01534744]
[1642539292386,0.9324,3111.8,3111.0,0.01648428]
[1642539292585,22.07432059,3111.7,3111.0,0.01648428]
[1642539292786,0.1285,3111.6,3111.0,0.01648428]
[1642539292986,2.243766,3111.5,3111.0,0.01648428]
[1642539293723,3.047696,3111.5,3110.9,0.01705271]
[1642539294119,4.55,3111.4,3110.8,3.66145271]
[1642539294321,0.13134212,3111.4,3110.8,3.66145271]
[1642539294521,0.0022737,3111.3,3110.8,3.66145271]
[1642539294922,0.00170527,3111.2,3110.5,0.1285]
[1642539295224,0.00170527,3111.2,3110.6,0.00170527]
[1642539295225,0.00113685,3111.1,3110.6,0.00170527]
[1642539295420,3.99440836,3111.1,3110.6,0.00170527]
[1642539295720,1.9330052,3110.7,3110.6,0.00170527]
[1642539296121,2.03613886,3111.0,3110.6,0.00170527]
[1642539296122,2.86268305,3110.9,3110.6,0.00170527]
[1642539296922,2.03613886,3111.0,3110.6,0.00170527]
[1642539297172,0.1285,3110.9,3110.6,0.00170527]
[1642539297575,0.1285,3110.9,3110.1,0.00454739]
[1642539297777,1.45444623,3110.4,3110.1,0.00454739]
[1642539297978,0.1285,3110.9,3110.1,0.00454739]
[1642539298178,0.00113685,3111.1,3110.2,0.1285]
[1642539298577,0.00113685,3111.1,3110.3,0.00341054]
[1642539299181,0.00113685,3111.1,3110.4,1.22864297]
[1642539299380,1.33264261,3110.5,3110.3,0.00341054]
[1642539299580,1.33264261,3110.5,3110.2,1.1285]
[1642539299979,0.00113685,3111.1,3110.2,1.1285]
[1642539299980,0.00113685,3111.1,3110.3,0.80378]
[1642539300181,0.00113685,3111.1,3110.4,0.1285]
[1642539300382,0.00113685,3111.1,3110.5,0.01282645]
[1642539300580,0.00113685,3111.1,3110.6,0.1285]
[1642539300783,0.00113685,3111.1,3110.6,0.73020527]
[1642539301021,1.25752516,3110.7,3110.6,0.7285]
[1642539301419,1.25752516,3110.7,3110.6,0.43020527]
[1642539301624,1.25752516,3110.7,3110.6,0.13020527]
[1642539301821,1.25752516,3110.7,3110.3,0.1285]
[1642539302022,1.25752516,3110.7,3110.6,1.23146732]
[1642539302929,1.25752516,3110.7,3110.4,0.00113684]
[1642539303327,1.25752516,3110.7,3110.2,0.00227369]
[1642539303725,1.25752516,3110.7,3109.9,0.00397896]
[1642539303927,1.25752516,3110.7,3109.8,0.00454739]
[1642539304672,1.4809403,3109.9,3109.8,0.00454739]
[1642539305075,4.53320136,3109.9,3109.8,0.00454739]
[1642539305273,1.4809403,3109.9,3109.8,0.00454739]
[1642539305676,3.54689187,3109.9,3109.8,0.00454739]
[1642539306076,6.54587761,3109.9,3109.4,0.00682108]
[1642539306282,6.54587761,3109.9,3108.6,2.33135144]
[1642539306283,0.01297554,3109.7,3108.6,2.33135144]
[1642539306483,0.01297554,3109.7,3108.2,1.73189391]
[1642539306484,0.81669742,3109.5,3108.2,1.73189391]
[1642539306685,0.9331,3109.4,3108.2,1.73189391]
[1642539306881,0.1285,3109.4,3108.3,0.1285]
[1642539307080,0.00113685,3109.6,3108.3,0.1285]
[1642539307281,0.00113685,3109.6,3108.4,0.00568423]
[1642539307482,0.00113685,3109.6,3108.5,0.1285]
[1642539307782,0.00113685,3109.6,3108.6,0.00454739]
[1642539310231,2.19552483,3108.9,3108.6,0.00454739]
[1642539310432,0.1285,3109.5,3108.6,0.00454739]
[1642539310831,0.1285,3109.5,3108.4,0.1285]
[1642539310832,0.80447,3109.4,3108.5,0.00511581]
[1642539311033,0.1285,3109.3,3108.5,0.00511581]
[1642539311433,0.1285,3109.3,3108.3,0.00625266]
[1642539311833,0.80454,3109.1,3108.3,0.00625266]
[1642539312039,0.1285,3109.0,3108.3,0.00625266]
[1642539312280,0.1285,3109.0,3108.5,3.2]
[1642539312482,1.83756617,3108.9,3108.5,3.2]
[1642539312682,1.83756617,3108.9,3108.6,0.00454739]
[1642539313986,5.6,3108.7,3108.5,2.26828738]
[1642539314187,8.50565902,3108.6,3108.5,0.26400019]
[1642539314386,0.28906,3108.6,3108.5,0.26400019]
[1642539314587,5.1,3108.5,3108.0,0.1285]
[1642539314785,5.1,3108.5,3107.5,0.128765]
[1642539315084,0.16056,3108.6,3108.1,0.00284211]
[1642539315085,2.12376475,3108.4,3108.1,0.00284211]
[1642539316133,0.2793445,3108.8,3107.7,1.04140462]
[1642539316330,0.2793445,3108.8,3107.8,4.0401]
[1642539316628,0.2793445,3108.8,3108.0,0.80423]
[1642539316829,0.2793445,3108.8,3108.2,1.32919657]
[1642539317029,0.00113685,3108.8,3108.3,0.9327276]
[1642539317238,0.00113685,3108.8,3108.4,2.75224413]
[1642539317432,0.00113685,3108.8,3108.5,0.1285]
[1642539317635,0.00113685,3108.8,3108.5,1.1285]
[1642539317833,0.00113685,3108.8,3108.5,1.9649959]
[1642539318033,2.84713421,3110.1,3108.7,5.6]
[1642539318233,2.70893424,3110.1,3109.0,0.8040943]
[1642539318433,2.70893424,3110.1,3108.9,1.6081886]
[1642539318434,1.81267105,3109.4,3109.1,0.1285]
[1642539318637,0.00682108,3110.0,3109.0,0.4285]
[1642539318834,0.00284212,3109.3,3109.0,0.4285]
[1642539319034,0.0778384,3110.8,3109.0,3.929]
[1642539319035,0.00625266,3109.9,3109.0,3.929]
[1642539319236,0.2063384,3110.8,3110.5,1.52871424]
[1642539319237,0.0778384,3110.8,3110.5,1.52871424]
[1642539319437,0.0778384,3110.8,3109.7,0.8169]
[1642539319676,0.0778384,3110.8,3109.8,3.9359]
[1642539319677,1.92292457,3109.9,3109.8,3.9359]
[1642539319881,1.92292457,3109.9,3109.8,0.03867595]
[1642539320182,0.0778384,3110.8,3110.0,0.8038464]
[1642539320377,0.0778384,3110.8,3110.0,0.83671931]
[1642539320579,0.0778384,3110.8,3110.1,0.3]
[1642539320580,0.00284212,3110.4,3110.1,0.3]
[1642539320779,0.00284212,3110.4,3110.1,0.4285]
[1642539320978,0.00227369,3110.3,3110.1,0.4285]
[1642539321177,0.00227369,3110.3,3109.9,0.1285]
[1642539321378,0.00227369,3110.3,3110.0,1.5094657]
[1642539321678,0.00170527,3110.2,3110.1,2.3359811]
[1642539321877,0.00170527,3110.2,3110.1,2.375886]
[1642539322081,0.00170527,3110.2,3110.1,3.375886]
[1642539322281,0.00170527,3110.2,3110.1,5.15219111]
[1642539322484,0.00170527,3110.2,3110.1,7.93537354]
[1642539322880,0.00170527,3110.2,3110.1,7.89546864]
[1642539323828,0.00170527,3110.2,3110.1,8.35746864]
[1642539324029,3.05861692,3112.2,3110.1,8.35746864]
[1642539324030,0.1285,3112.0,3110.9,0.80358]
[1642539324230,0.1285,3112.1,3111.3,1.30118549]
[1642539324530,0.0073895,3111.5,3111.3,0.3]
[1642539324931,0.00682108,3111.4,3111.3,0.3]
[1642539325134,0.00682108,3111.4,3111.1,4.1191]
[1642539325330,1.96842369,3111.3,3111.1,3.8191]
[1642539325529,1.96842369,3111.3,3110.3,1.60741]
[1642539325530,1.97467635,3111.3,3110.8,3.7199]
[1642539325731,1.97467635,3111.3,3110.2,2.4435]
[1642539325732,0.13418423,3111.2,3110.2,2.4435]
[1642539325932,0.13418423,3111.2,3110.1,8.0994]
[1642539326131,0.00511581,3111.1,3110.1,8.0994]
[1642539326330,0.00511581,3111.1,3110.1,8.9032849]
[1642539326533,0.00454739,3111.0,3110.1,5.8066849]
[1642539326732,0.00454739,3111.0,3110.4,1.21545073]
[1642539326932,0.00397896,3110.9,3110.5,0.1285]
[1642539327173,0.00397896,3110.9,3110.6,0.462]
[1642539327378,0.00341054,3110.8,3110.7,5.7285]
[1642539327578,0.00341054,3110.8,3110.7,10.07796856]
[1642539327783,0.1285,3112.5,3110.9,1.44289977]
[1642539327980,0.1285,3112.5,3111.0,7.78647939]
[1642539328179,0.1285,3112.5,3111.1,1.0]
[1642539328180,0.00909477,3112.4,3111.1,1.0]
[1642539328378,0.00909477,3112.4,3111.2,3.66731419]
[1642539328578,0.00852635,3112.3,3111.3,1.0]
[1642539328780,0.00852635,3112.3,3111.4,4.49401565]
[1642539328981,0.00795793,3112.2,3111.7,0.8034355]
[1642539329380,0.0073895,3112.1,3111.7,1.1034355]
[1642539329680,0.1285,3112.5,3111.7,1.4034355]
[1642539329681,0.00682108,3112.0,3111.7,1.4034355]
[1642539330079,2.02762127,3111.9,3111.7,1.4034355]
[1642539330482,0.00568423,3111.8,3111.7,3.0102755]
[1642539330930,0.00568423,3111.8,3111.7,7.9602755]
[1642539331126,0.00568423,3111.8,3111.7,4.0102755]
[1642539331324,0.00568423,3111.8,3111.7,8.2602755]
[1642539331727,0.00568423,3111.8,3111.7,4.0102755]
[1642539332731,0.00568423,3111.8,3111.7,6.86863229]
[1642539332935,0.1285,3112.8,3111.9,3.2134757]
[1642539333131,0.1285,3112.8,3112.0,0.33018287]
[1642539333332,0.00397897,3112.5,3112.0,0.33018287]
[1642539333534,0.00397897,3112.5,3112.0,3.85538987]
[1642539333733,0.01248179,3113.4,3112.0,4.628577]
[1642539333734,0.00341054,3112.4,3112.0,4.628577]
[1642539334035,2.00730994,3113.1,3112.2,6.43376215]
[1642539334233,0.8382366,3113.5,3112.3,4.15750104]
[1642539334434,0.0022737,3112.8,3112.3,5.45750104]
[1642539334674,0.0022737,3112.8,3112.4,0.03504522]
[1642539334873,0.00170527,3112.7,3112.5,0.462]
[1642539335075,0.00170527,3112.7,3112.5,0.762]
[1642539335274,0.00113685,3112.6,3112.5,5.54591777]
[1642539335478,0.1285,3113.9,3112.5,2.88511927]
[1642539335675,0.00113685,3112.6,3112.5,1.8012015]
[1642539335875,0.00113685,3112.6,3112.5,0.762]
[1642539336475,1.22513647,3113.1,3112.1,1.21830527]
[1642539336678,1.97778522,3112.7,3112.5,3.20170527]
[1642539336875,0.1285,3112.6,3112.5,3.2]
[1642539337280,1.97778522,3112.7,3112.5,3.2]
[1642539337679,1.97778522,3112.7,3112.6,0.00113685]
[1642539338923,0.1285,3113.3,3112.6,0.00113685]
[1642539339923,0.1285,3113.3,3112.8,1.23673183]
[1642539340125,0.1285,3113.3,3112.8,1.53673183]
[1642539340324,0.1285,3113.3,3112.8,0.6]
[1642539340728,0.1285,3113.3,3112.6,0.30113685]
[1642539340925,0.1285,3113.3,3112.6,0.00113685]
[1642539341124,1.99457349,3113.1,3112.6,0.00113685]
[1642539341525,0.00113685,3113.0,3112.6,0.00113685]
[1642539342783,0.12963685,3113.0,3112.6,0.00113685]
[1642539343584,0.12792513,3113.0,3112.7,1.52415983]
[1642539343783,1.99457349,3113.1,3112.7,2.12415983]
[1642539344083,1.99457349,3113.1,3112.8,0.00113685]
[1642539344586,0.1283,3113.3,3112.8,0.00113685]
[1642539344783,18.79235203,3113.5,3112.8,0.00113685]
[1642539344982,0.00113684,3113.2,3112.6,0.0022737]
[1642539345183,0.00113684,3113.2,3112.6,1.0022737]
[1642539345582,0.00113684,3113.2,3112.7,0.00170528]
[1642539346824,0.00113684,3113.2,3112.6,0.0022737]
[1642539347025,0.00113684,3113.2,3112.7,0.00170528]
[1642539347231,0.00113684,3113.2,3112.6,0.0022737]
[1642539348930,18.78113684,3113.2,3112.6,0.0022737]
[1642539349973,1.81461229,3112.8,3112.6,0.0022737]
[1642539350174,0.1283,3113.1,3112.6,0.0022737]
[1642539350374,0.00113684,3113.2,3112.6,0.0022737]
[1642539350778,0.00113684,3113.2,3112.9,1.131005]
[1642539350976,0.00113684,3113.2,3112.6,0.0022737]
[1642539351177,0.80448554,3113.2,3112.6,0.0022737]
[1642539352177,2.07051711,3113.1,3112.6,0.0022737]
[1642539352381,0.80448554,3113.2,3112.6,0.0022737]
[1642539353081,18.78,3113.1,3112.6,0.0022737]
[1642539353281,0.1283,3113.0,3112.6,0.0022737]
[1642539353528,0.9318337,3113.0,3112.6,0.0022737]
[1642539355228,0.9318337,3113.0,3112.8,1.4897286]
[1642539355429,0.8035337,3113.0,3112.8,1.4897286]
[1642539358784,0.8035337,3113.0,3112.6,0.0022737]
[1642539359787,0.8035337,3113.0,3112.8,1.20135856]
[1642539362034,2.31062849,3112.9,3112.8,1.20135856]
[1642539362436,2.31062849,3112.9,3112.8,0.00113685]
[1642539362834,2.31062849,3112.9,3112.6,0.0022737]
[1642539364677,3.28521249,3113.0,3112.6,0.0022737]
[1642539364876,3.15671249,3113.0,3112.6,0.0022737]
[1642539365477,1.6070437,3113.0,3112.6,0.0022737]
[1642539365882,0.8035337,3113.0,3112.6,0.0022737]
[1642539367382,2.35320249,3113.0,3112.6,0.0022737]
[1642539368964,1.99883357,3112.7,3112.6,0.0022737]
[1642539370165,0.8034196,3112.8,3112.6,0.0022737]
[1642539371370,0.8034196,3112.8,3112.6,0.1307737]
[1642539371871,0.8034196,3112.8,3112.7,0.00170528]
[1642539373289,1.54966879,3113.0,3112.7,0.00170528]
[1642539373490,1.54966879,3113.0,3112.8,0.1283]
[1642539373888,1.54966879,3113.0,3112.8,0.4283]
[1642539374088,1.54966879,3113.0,3112.8,1.4283]
[1642539374590,0.00113684,3113.2,3113.0,5.6]
[1642539374790,0.00113684,3113.2,3113.1,6.062]
[1642539374993,4.02220626,3113.5,3113.3,5.6]
[1642539375191,4.02220626,3113.5,3113.3,5.9]
[1642539375390,4.00288502,3114.0,3113.4,10.3476835]
[1642539375692,0.00397897,3113.9,3113.5,0.80289]
[1642539375933,0.00397897,3113.9,3113.5,1.10289]
[1642539376234,0.00341054,3113.8,3113.5,1.90581]
[1642539376735,0.00284212,3113.7,3113.5,1.90581]
[1642539376935,0.00284212,3113.7,3113.6,0.1283]
[1642539377134,0.0022737,3113.6,3113.0,3.92667]
[1642539377337,0.00284212,3113.7,3113.0,3.92667]
[1642539377541,0.00170527,3113.5,3113.1,0.80317]
[1642539377738,2.19206548,3113.6,3113.1,0.80317]
[1642539378040,2.19206548,3113.6,3112.8,1.7409]
[1642539378041,0.00170527,3113.5,3112.8,1.1506]
[1642539378239,0.1283,3113.4,3112.8,1.1506]
[1642539378438,0.00113685,3113.4,3112.9,0.00170527]
[1642539378840,2.04092863,3113.6,3112.9,0.00170527]
[1642539379040,2.07977126,3113.0,3112.7,0.13114212]
[1642539379240,2.07977126,3113.0,3112.7,0.00397897]
[1642539379442,2.07977126,3113.0,3112.8,0.00341054]
[1642539379692,2.07977126,3113.0,3112.6,0.00454739]
[1642539379983,2.07977126,3113.0,3112.5,0.00511581]
[1642539380590,2.88312086,3113.0,3112.5,0.00511581]
[1642539381088,2.88312086,3113.0,3112.6,2.72740766]
[1642539381290,2.88312086,3113.0,3112.6,3.02740766]
[1642539381488,2.88312086,3113.0,3112.7,0.00397897]
[1642539382491,0.8033496,3113.0,3112.7,0.00397897]
[1642539383741,0.8032907,3113.2,3112.7,0.00397897]
[1642539385448,0.8032629,3113.4,3112.7,0.80726897]
[1642539385748,0.8032629,3113.4,3113.2,1.39600962]
[1642539386248,2.42915902,3113.5,3113.2,1.39600962]
[1642539386648,2.42915902,3113.5,3113.3,0.3]
[1642539386848,4.56582111,3113.5,3113.3,0.3]
[1642539387289,2.13666209,3113.5,3113.3,0.3]
[1642539388092,2.42915902,3113.6,3113.3,0.3]
[1642539388291,2.42915902,3113.6,3113.4,0.1283]
[1642539388690,2.42915902,3113.6,3113.4,2.5374]
[1642539389096,0.00227369,3113.8,3113.4,2.5374]
[1642539389290,0.00227369,3113.8,3113.7,1.35427373]
[1642539389491,2.42915902,3113.9,3113.7,0.3]
[1642539389890,2.42915902,3113.9,3113.5,0.3]
[1642539390792,2.42915902,3113.9,3113.6,1.39738207]
[1642539391833,2.42915902,3114.0,3113.6,1.39738207]
[1642539392034,2.42915902,3114.0,3113.4,0.1283]
[1642539392234,0.8031797,3113.9,3113.1,0.1283]
[1642539392437,0.1283,3113.8,3113.0,0.3]
[1642539392634,0.1283,3113.8,3112.8,1.33701054]
[1642539392635,2.31984002,3113.7,3113.2,0.00113685]
[1642539392835,2.44984529,3113.7,3113.1,0.00170527]
[1642539393035,0.00113685,3113.6,3112.9,0.00284212]
[1642539393438,0.80438695,3113.6,3112.9,0.00284212]
[1642539393636,0.00113685,3113.6,3112.9,0.00284212]
[1642539393834,0.00113685,3113.6,3112.9,0.80606212]
[1642539394235,0.00113685,3113.6,3113.0,0.00227369]
[1642539394685,1.79258773,3113.1,3112.9,0.00284212]
[1642539394879,0.8032795,3113.4,3112.9,0.30284212]
[1642539395280,0.8032795,3113.4,3113.0,0.00227369]
[1642539395682,0.8032795,3113.4,3112.9,0.00284212]
[1642539395883,0.8032795,3113.4,3112.6,1.42142095]
[1642539395884,0.8032795,3113.4,3112.7,0.00397897]
[1642539396381,3.58562509,3113.3,3112.7,0.00397897]
[1642539397386,0.1283,3113.3,3112.7,0.00397897]
[1642539397583,0.1283,3113.3,3112.7,2.89383863]
[1642539397584,2.42915902,3113.3,3112.7,2.89383863]
[1642539397783,2.42915902,3113.3,3112.7,3.89383863]
[1642539397982,2.42915902,3113.3,3112.8,0.80654054]
[1642539398184,2.42915902,3113.3,3112.9,0.4283]
[1642539398437,2.29778699,3113.1,3112.9,7.24476567]
[1642539398629,2.29778699,3113.1,3113.0,0.00227369]
[1642539398930,0.00113685,3113.6,3113.0,1.4190044]
[1642539399131,0.00113685,3113.6,3113.0,2.2221644]
[1642539399330,0.00113685,3113.6,3113.1,0.00170527]
[1642539399931,2.12273355,3113.5,3113.1,0.00170527]
[1642539400530,2.12273355,3113.5,3113.0,0.00227369]
[1642539400731,2.12273355,3113.5,3112.9,0.00284212]
[1642539400936,2.25103355,3113.5,3112.9,0.00284212]
[1642539401732,3.05426475,3113.5,3112.9,0.00284212]
[1642539402384,2.92596475,3113.5,3112.9,0.00284212]
[1642539402584,2.92596475,3113.5,3112.7,0.00397897]
[1642539402785,2.15406837,3112.8,3112.7,0.00397897]
[1642539402986,2.15406837,3112.8,3112.7,0.13247897]
[1642539403589,0.803292,3113.2,3112.7,0.13247897]
[1642539403785,0.803292,3113.2,3112.7,0.00397897]
[1642539403986,0.803292,3113.2,3112.8,0.00341054]
[1642539404185,0.803292,3113.2,3112.7,0.00397897]
[1642539404986,0.8032522,3113.4,3113.1,1.24211096]
[1642539405288,2.43029587,3113.6,3113.2,0.00113685]
[1642539405933,0.00113685,3113.6,3113.2,0.00113685]
[1642539406139,0.80435465,3113.6,3113.2,0.00113685]
[1642539407134,1.97158691,3113.5,3113.2,0.00113685]
[1642539407539,0.8032807,3113.4,3113.0,0.00227369]
[1642539408541,0.8032807,3113.4,3113.0,1.09067202]
[1642539408941,0.8032807,3113.4,3113.1,0.00170527]
[1642539414632,2.42915902,3113.5,3113.2,0.1283]
[1642539415634,2.42915902,3113.5,3113.2,1.9314]
[1642539415635,1.92243017,3113.4,3113.2,1.9314]
[1642539415834,2.42915902,3113.5,3113.2,0.9314]
[1642539416034,0.00113685,3113.6,3113.3,1.10304]
[1642539416234,0.00113685,3113.6,3113.5,1.52889624]
[1642539416433,0.00113685,3113.6,3113.5,1.82889624]
[1642539417485,0.00113685,3113.6,3113.5,1.95719624]
[1642539417887,0.00113685,3113.6,3113.5,1.65719624]
[1642539419882,0.00113685,3113.6,3113.5,4.66625174]
[1642539420084,0.00113685,3113.6,3113.5,4.53795174]
[1642539420284,0.00113685,3113.6,3113.5,1.82889624]
[1642539420931,2.18118859,3114.1,3113.5,2.63197624]
[1642539421131,4.18013656,3114.3,3113.5,2.63197624]
[1642539421334,0.00227369,3114.0,3113.5,2.63197624]
[1642539421736,0.00170527,3113.9,3113.5,2.63197624]
[1642539422137,0.00113684,3113.8,3113.5,2.63197624]
[1642539424338,0.00113684,3113.8,3113.6,3.85166288]
[1642539424544,0.00113684,3113.8,3113.7,8.45069376]
[1642539424784,0.00113684,3113.8,3113.7,6.82296653]
[1642539424983,0.00113684,3113.8,3113.7,7.82296653]
[1642539425381,0.00113684,3113.8,3113.7,10.42144372]
[1642539425982,3.23887869,3115.1,3113.8,5.6]
[1642539426186,3.23887869,3115.1,3114.3,1.60544]
[1642539426483,3.23887869,3115.1,3114.6,0.80273]
[1642539427187,0.1283,3115.4,3114.6,0.3]
[1642539427386,0.1283,3115.4,3114.5,0.762]
[1642539427587,0.00852635,3115.3,3114.5,0.762]
[1642539427787,2.19047034,3115.1,3114.5,0.462]
[1642539427989,0.13625793,3115.2,3114.5,2.06747]
[1642539428288,0.00738951,3115.1,3114.5,2.06747]
[1642539428533,3.23887869,3115.3,3114.6,5.15]
[1642539428733,0.1283,3115.2,3114.6,0.00284212]
[1642539428932,3.24001553,3115.3,3114.7,0.0022737]
[1642539429132,3.24001553,3115.3,3114.6,0.00284212]
[1642539429335,3.24001553,3115.3,3114.7,1.28208927]
[1642539429533,2.42268427,3115.2,3114.8,0.80272]
[1642539429737,2.42268427,3115.2,3114.8,0.80442527]
[1642539429934,2.42268427,3115.2,3114.9,0.00113685]
[1642539430334,0.00113684,3115.3,3114.9,0.00113685]
[1642539430734,0.00113684,3115.3,3115.0,0.3]
[1642539430936,0.00113684,3115.3,3115.1,2.78989712]
[1642539431138,0.00113684,3115.3,3115.1,3.69619712]
[1642539431336,0.00113684,3115.3,3115.1,0.9063]
[1642539431735,0.00113684,3115.3,3115.1,4.1165]
[1642539432186,0.00113684,3115.3,3115.2,0.3]
[1642539432388,0.00113684,3115.3,3115.2,6.75]
[1642539432589,0.00113684,3115.3,3115.2,10.90759234]
[1642539433485,0.00113684,3115.3,3115.2,12.34301932]
[1642539434086,0.00113684,3115.3,3115.2,12.64301932]
[1642539434685,0.00113684,3115.3,3115.2,5.89301932]
[1642539434889,0.00113684,3115.3,3115.2,6.89301932]
[1642539435089,0.00113684,3115.3,3115.2,7.19301932]
[1642539435488,0.1283,3116.4,3115.3,5.6]
[1642539435788,0.00568424,3116.3,3115.8,0.80229]
[1642539436039,0.00568424,3116.3,3115.9,4.01113635]
[1642539436239,0.00511582,3116.2,3115.9,4.01113635]
[1642539436440,0.00511582,3116.2,3115.9,4.04974741]
[1642539436640,0.00454739,3116.1,3115.9,4.30764586]
[1642539436839,0.00454739,3116.1,3116.0,11.44482576]
[1642539437041,2.42268427,3116.5,3116.0,9.45236429]
[1642539437240,2.42268427,3116.5,3116.0,9.15236429]
[1642539437445,0.00625266,3116.4,3116.3,5.94178037]
[1642539437642,0.00625266,3116.4,3116.3,7.70378037]
[1642539439042,0.00625266,3116.4,3116.3,8.00378037]
[1642539439243,0.00625266,3116.4,3116.3,10.98782585]
[1642539439692,0.00625266,3116.4,3116.3,11.11612585]
[1642539440284,0.00625266,3116.4,3116.3,4.21612585]
[1642539440583,0.00625266,3116.4,3116.3,4.94818738]
[1642539440784,0.00625266,3116.4,3116.3,1.23208037]
[1642539441583,0.00625266,3116.4,3116.3,1.10378037]
[1642539443633,0.00625266,3116.4,3116.3,1.90600037]
[1642539445532,0.00625266,3116.4,3116.3,1.56422]
[1642539445734,0.00625266,3116.4,3116.3,0.3]